[Event "WYCC 2018 O18"]
[Site "Halkidiki"]
[Date "2018.10.30"]
[Round "11"]
[White "Veleshnja, Zino"]
[Black "Liang, Albert"]
[Result "0-1"]
[ECO "D00"]
[WhiteElo "2155"]
[BlackElo "2042"]
[Annotator "NA"]
[PlyCount "110"]
[EventDate "2018.10.20"]
[EventType "swiss"]
[EventCountry "GRE"]
[SourceTitle "playchess.com"]
[Source "ChessBase"]
[SourceQuality "1"]
[TimeControl "40/5400+30:1800+30"]

1. d4 {[%emt 0:00:00]} d5 {[%emt 0:00:00]} 2. Bf4 {[%emt 0:00:00]} Nf6 {[%emt 0:00:15]} 3. e3 {[%emt 0:00:00]} c5 {[%emt 0:00:47]} 4. c3 {[%emt 0:00:00]} e6 {[%emt 0:00:19]} 5. Nd2 {[%emt 0:00:01]} Nc6 {[%emt 0:00:47]} 6. Ngf3 {[%emt 0:00:09]} Bd6 {[%emt 0:00:39]} 7. Bg3 {[%emt 0:00:06]} O-O {[%emt 0:00:19]} 8. Bd3 {[%emt 0:00:04]} b6 {[%emt 0:00:42]} 9. e4 {[%emt 0:00:07] D02: 1 d4 d5 2 Nf3 sidelines, including 2...Nf6 3 g3 and 2...Nf6 3 Bf4} Be7 {[%emt 0:00:31]} 10. e5 {[%emt 0:00:49]} Nh5 {[%emt 0:00:49]} 11. Ng5 {[%emt 0:00:12]} (11. Nf1 cxd4 12. Nxd4 Nxd4 13. cxd4 g6 14. Ne3 f5 15. exf6 Bxf6 16. Be2 Nxg3 17. hxg3 {½-½ (37) Nakamura,H (2787)-Svidler,P (2760) Moscow 2018}) 11... Bxg5 {[%emt 0:03:03]} 12. Qxh5 {[%emt 0:00:55]} g6 {[%emt 0:00:37]} 13. Qe2 {[%emt 0:00:20]} cxd4 {[%emt 0:05:04]} 14. h4 {[%emt 0:00:02]} Bh6 {[%emt 0:17:36]} 15. h5 {[%emt 0:00:21]} Bg7 $146 {[%emt 0:00:41]} ({Predecessor:} 15... dxc3 16. bxc3 Bg7 {½-½ (43) Filipovic,B (2388)-Derakhshani,B (2302) Flims 2016}) 16. f4 {[%emt 0:10:33]} dxc3 {[%emt 0:04:06]} 17. bxc3 {[%emt 0:00:28]} Qc7 {[%emt 0:04:49]} 18. Nf3 {[%emt 0:12:41]} Ne7 {[%emt 0:10:11]} 19. Rc1 {[%emt 0:03:12]} Qc5 {[%emt 0:13:49]} 20. Bh4 {[%emt 0:06:56]} Nf5 {[%emt 0:03:51]} 21. g4 {[%emt 0:08:04]} Nxh4 {[%emt 0:02:02]} 22. Rxh4 {[%emt 0:01:00]} Rd8 {[%emt 0:01:27]} 23. Nd4 {[%emt 0:06:49]} Bd7 {[%emt 0:02:18]} 24. Kf2 {[%emt 0:10:41]} a6 {[%emt 0:02:20]} 25. hxg6 {[%emt 0:09:39]} hxg6 {[%emt 0:02:23]} 26. Qe3 {[%emt 0:02:01]} Bb5 {[%emt 0:14:27]} 27. Bb1 {[%emt 0:00:54]} Rac8 {[%emt 0:01:52]} 28. Rh3 {[%emt 0:02:35]} Qa3 {[%emt 0:01:03]} 29. Kg1 {[%emt 0:13:02]} Bd7 {[%emt 0:02:02]} 30. Rf1 {[%emt 0:00:42]} Rc4 {[%emt 0:01:33]} 31. Bc2 {[%emt 0:06:33]} Rdc8 {[%emt 0:00:58]} 32. Bb3 {[%emt 0:00:02]} R4c5 {[%emt 0:00:21]} 33. Qe1 {[%emt 0:01:30]} b5 {[%emt 0:01:23]} 34. Rf2 {[%emt 0:01:11]} Qa5 {[%emt 0:00:29]} 35. Rc2 {[%emt 0:02:06]} Qb6 {[%emt 0:00:09]} 36. a3 {[%emt 0:01:46]} a5 {[%emt 0:00:22]} 37. Kg2 {[%emt 0:00:46]} Rb8 {[%emt 0:01:02]} 38. Ba2 {[%emt 0:01:05]} Rc7 {[%emt 0:01:02]} 39. Qd2 {[%emt 0:00:00]} Qc5 {[%emt 0:00:00]} 40. Qc1 {[%emt 0:00:00]} (40. Rf3 $17) 40... Rbc8 {[%emt 0:00:00]} 41. Bb1 {[%emt 0:09:37]} Qb6 {[%emt 0:07:00]} 42. Qd2 {[%emt 0:02:08]} Rc4 {[%emt 0:01:46]} 43. Ba2 {[%emt 0:01:14]} Qxd4 {[%emt 0:03:15]} 44. Bxc4 {[%emt 0:06:21]} Qxc4 {[%emt 0:02:52]} 45. Rb2 {[%emt 0:02:17]} Qa4 {[%emt 0:02:22]} 46. Rd3 {[%emt 0:02:05]} Rc4 {[%emt 0:05:11]} 47. Rf3 {[%emt 0:01:46]} Bf8 {[%emt 0:01:29]} 48. g5 {[%emt 0:00:21]} Bxa3 {[%emt 0:03:37]} 49. Rb1 {[%emt 0:00:27]} Bf8 {[%emt 0:03:01]} 50. Kg3 {[%emt 0:04:08]} Re4 {[%emt 0:00:47]} 51. Rh1 {[%emt 0:00:29]} Qc4 {[%emt 0:00:50]} 52. Rh2 {[%emt 0:02:45]} a4 {[%emt 0:00:34]} 53. Kg4 {[%emt 0:02:02]} Bg7 {[%emt 0:00:43]} 54. Kg3 {[%emt 0:00:47]} a3 {[%emt 0:00:25]} 55. Rf1 {[%emt 0:00:31]} Qxf1 {[%emt 0:00:13]} 0-1

[Event "WYCC 2018 O18"]
[Site "Halkidiki"]
[Date "2018.10.30"]
[Round "11"]
[White "Torres Cueto, Jesus Marcial"]
[Black "Krstic, Milos"]
[Result "1-0"]
[ECO "E46"]
[WhiteElo "2078"]
[BlackElo "2171"]
[Annotator "NA"]
[PlyCount "77"]
[EventDate "2018.10.20"]
[EventType "swiss"]
[EventCountry "GRE"]
[SourceTitle "playchess.com"]
[Source "ChessBase"]
[SourceQuality "1"]
[TimeControl "40/5400+30:1800+30"]

1. d4 {[%emt 0:00:00]} Nf6 {[%emt 0:00:00]} 2. c4 {[%emt 0:00:00]} e6 {[%emt 0:00:00]} 3. Nc3 {[%emt 0:00:00]} Bb4 {[%emt 0:00:00]} 4. e3 {[%emt 0:02:17]} O-O {[%emt 0:00:00]} 5. Nge2 {[%emt 0:00:03]} d5 {[%emt 0:01:47]} 6. a3 {[%emt 0:00:05]} Be7 {[%emt 0:03:40]} 7. cxd5 {[%emt 0:00:24]} exd5 {[%emt 0:01:34]} 8. h3 {[%emt 0:00:07] E46: Nimzo-Indian: Rubinstein: 4 e3 0-0 5 Ne2 without early Bd3} (8. Nf4 c6 9. Bd3 Na6 10. O-O Nc7 11. f3 Re8 12. Bd2 Bf8 13. Qe1 g6 14. g4 c5 15. Qf2 b6 16. h4 Bd6 17. Nce2 {0-1 (54) Caruana,F (2816)-Karjakin,S (2782) Leuven 2018}) 8... c6 {[%emt 0:04:22]} 9. g4 {[%emt 0:00:16]} Ne4 {[%emt 0:05:43]} 10. Nxe4 {[%emt 0:01:44]} dxe4 {[%emt 0:00:04]} 11. Nc3 $146 {[%emt 0:00:05]} ({Predecessor:} 11. Ng3 f5 12. Nxf5 Bxf5 13. gxf5 Qa5+ 14. Bd2 Qxf5 15. Qb3+ Kh8 {0-1 (40) Laurusas,T (2373)-Beliajev,D (2181) Klaipeda 2013}) 11... Bh4 {[%emt 0:03:35]} 12. Bg2 {[%emt 0:08:33]} Qe7 {[%emt 0:06:32]} 13. Qb3 {[%emt 0:11:33]} Be6 {[%emt 0:15:05]} 14. Qb4 {[%emt 0:00:07]} Qxb4 {[%emt 0:04:31]} 15. axb4 {[%emt 0:00:06]} f5 {[%emt 0:00:06]} 16. gxf5 {[%emt 0:00:13]} Bxf5 {[%emt 0:00:05]} 17. O-O {[%emt 0:03:45]} Be7 {[%emt 0:03:57]} 18. b5 {[%emt 0:00:10]} cxb5 {[%emt 0:00:21]} 19. Nxe4 {[%emt 0:04:25]} Nc6 {[%emt 0:12:39]} 20. Bd2 {[%emt 0:00:22]} Rfd8 {[%emt 0:01:40]} 21. Rfc1 {[%emt 0:00:39]} a6 {[%emt 0:15:33]} 22. Nc5 {[%emt 0:01:06]} Bxc5 {[%emt 0:02:22]} 23. Rxc5 {[%emt 0:01:07]} Bd7 {[%emt 0:00:04]} 24. f4 {[%emt 0:01:52]} Kf7 {[%emt 0:02:03]} 25. d5 {[%emt 0:00:31]} Ne7 {[%emt 0:00:24]} 26. e4 {[%emt 0:00:22]} Rac8 {[%emt 0:03:02]} 27. Rac1 {[%emt 0:00:18]} Rxc5 {[%emt 0:00:05]} 28. Rxc5 {[%emt 0:00:04]} Rc8 {[%emt 0:00:13]} 29. b4 {[%emt 0:01:13]} b6 {[%emt 0:00:33]} 30. Rxc8 {[%emt 0:00:12]} Bxc8 $18 {[%emt 0:00:10]} 31. Kf2 {[%emt 0:00:57]} g5 {[%emt 0:01:40]} 32. fxg5 {[%emt 0:00:29]} Ng6 {[%emt 0:00:04]} 33. Ke3 {[%emt 0:01:35]} Ne5 {[%emt 0:00:04]} 34. Bc3 {[%emt 0:00:28]} Nc4+ {[%emt 0:00:03]} 35. Kf4 {[%emt 0:00:29]} a5 {[%emt 0:00:04]} 36. e5 {[%emt 0:00:15]} a4 {[%emt 0:00:10]} 37. h4 {[%emt 0:01:09]} a3 {[%emt 0:00:13]} 38. Be4 {[%emt 0:00:15]} a2 {[%emt 0:00:18]} 39. Bxh7 {[%emt 0:00:25]} 1-0